fUST/lending_fUST_20250901
["ID","MTS","AMOUNT","RATE_DAILY","PERIOD"]
[382534626,1756659049712,-151.0,0.00017798,2]
[382534627,1756659049721,-151.0,0.00017798,2]
[382534628,1756659049730,-151.0,0.00017798,2]
[382534629,1756659049739,-1237.46,0.00017798,2]
[382534630,1756659049753,-151.0,0.00017798,2]
[382534631,1756659049762,-669.06,0.00017798,2]
[382534632,1756659049771,-151.0,0.00017798,2]
[382534633,1756659049921,-833.88,0.00017798,2]
[382534634,1756659049933,-151.0,0.00017798,2]
[382534635,1756659049941,-480.0,0.00017798,2]
[382534636,1756659049950,-480.0,0.00017798,2]
[382534637,1756659049959,-899.37,0.00017798,2]
[382534638,1756659049967,-571.25,0.00017798,2]
[382534639,1756659049978,-500.0,0.00017799,2]
[382534640,1756659049987,-480.0,0.00017799,2]
[382534641,1756659049996,-480.0,0.00017799,2]
[382534642,1756659050005,-480.0,0.00017799,2]
[382534643,1756659050015,-480.0,0.00017799,2]
[382534645,1756659050023,-480.0,0.00017799,2]
[382534646,1756659050033,-959.39,0.00017799,2]
[382534647,1756659050042,-480.0,0.00017799,2]
[382534649,1756659050052,-480.0,0.00017799,2]
[382534651,1756659050062,-480.0,0.00017799,2]
[382534653,1756659050071,-480.0,0.00017799,2]
[382534655,1756659050080,-480.0,0.00017799,2]
[382534657,1756659050090,-480.0,0.00017799,2]
[382534659,1756659050099,-480.0,0.00017799,2]
[382534661,1756659050109,-480.0,0.00017799,2]
[382534663,1756659050118,-480.0,0.00017799,2]
[382534665,1756659050128,-480.0,0.00017799,2]
[382534668,1756659050138,-480.0,0.00017799,2]
[382534669,1756659050149,-480.0,0.00017799,2]
[382534671,1756659050158,-491.53,0.00017799,2]
[382534673,1756659050167,-480.0,0.00017799,2]
[382534675,1756659050176,-480.0,0.00017799,2]
[382534677,1756659050185,-480.0,0.00017799,2]
[382534679,1756659050195,-480.0,0.00017799,2]
[382534681,1756659050206,-525.84,0.00017799,2]
[382534683,1756659050215,-480.0,0.00017799,2]
[382534685,1756659050225,-480.0,0.00017799,2]
[382534687,1756659050235,-480.0,0.00017799,2]
[382534689,1756659050245,-480.0,0.00017799,2]
[382534691,1756659050255,-480.0,0.00017799,2]
[382534693,1756659050265,-480.0,0.00017799,2]
[382534695,1756659050275,-702.91,0.00017799,2]
[382534697,1756659050285,-482.76,0.00017799,2]
[382534699,1756659050295,-480.0,0.00017799,2]
[382534702,1756659050306,-480.0,0.00017799,2]
[382534704,1756659050316,-480.0,0.00017799,2]
[382534706,1756659050326,-548.49,0.00017799,2]
[382534707,1756659050335,-591.87,0.00017799,2]
[382534709,1756659050344,-742.83,0.00017799,2]
[382534711,1756659050354,-480.0,0.00017799,2]
[382534713,1756659050363,-480.0,0.00017799,2]
[382534715,1756659050373,-480.0,0.00017799,2]
[382534717,1756659050383,-480.0,0.00017799,2]
[382534719,1756659050392,-554.89,0.00017799,2]
[382534721,1756659050402,-480.0,0.00017799,2]
[382534723,1756659050412,-480.0,0.00017799,2]
[382534725,1756659050422,-480.0,0.00017799,2]
[382534727,1756659050431,-1349.91,0.00017799,2]
[382534729,1756659050441,-480.0,0.00017799,2]
[382534731,1756659050451,-480.0,0.00017799,2]
[382534733,1756659050461,-480.0,0.00017799,2]
[382534735,1756659050470,-480.0,0.00017799,2]
[382534737,1756659050479,-416.95114487,0.00017799,2]
[382534739,1756659050488,-1120.3,0.00017799,2]
[382534741,1756659050498,-529.75,0.00017799,2]
[382534743,1756659050507,-480.0,0.00017799,2]
[382534745,1756659050517,-480.0,0.00017799,2]
[382534747,1756659050528,-151.0,0.00017799,2]
[382534749,1756659050538,-151.0,0.00017799,2]
[382534752,1756659050548,-933.06,0.00017799,2]
[382534754,1756659050558,-480.0,0.00017799,2]
[382534755,1756659050567,-480.0,0.00017799,2]
[382534758,1756659050578,-480.0,0.00017799,2]
[382534760,1756659050588,-620.91725656,0.00017799,2]
[382534762,1756659050597,-480.0,0.00017799,2]
[382534764,1756659050611,-583.31,0.00017799,2]
[382534765,1756659050620,-151.0,0.00017799,2]
[382534767,1756659050629,-480.0,0.00017799,2]
[382534769,1756659050638,-480.0,0.00017799,2]
[382534771,1756659050648,-480.0,0.00017799,2]
[382534773,1756659050657,-151.0,0.00017799,2]
[382534775,1756659050667,-494.29,0.00017799,2]
[382534777,1756659050677,-480.0,0.00017799,2]
[382534779,1756659050687,-1120.54,0.00017799,2]
[382534781,1756659050697,-817.85,0.00017799,2]
[382534783,1756659050707,-500.0,0.00017799,2]
[382534785,1756659050717,-1474.41,0.00017799,2]
[382534787,1756659050726,-480.0,0.00017799,2]
[382534789,1756659050735,-480.0,0.00017799,2]
[382534791,1756659050744,-969.31,0.00017799,2]
[382534793,1756659050754,-151.0,0.00017799,2]
[382534795,1756659050764,-151.0,0.00017799,2]
[382534797,1756659050774,-267.69012047,0.00017799,2]
[382534799,1756659050784,-151.0,0.00017799,2]
[382534801,1756659050794,-480.0,0.00017799,2]
[382534803,1756659050803,-480.0,0.00017799,2]
[382534805,1756659050812,-151.0,0.00017799,2]
[382534807,1756659050822,-1100.39,0.00017799,2]
[382534809,1756659050831,-480.0,0.00017799,2]
[382534811,1756659050840,-480.0,0.00017799,2]
[382534813,1756659050850,-151.0,0.00017799,2]
[382534815,1756659050859,-1287.82,0.00017799,2]
[382534817,1756659050869,-151.0,0.00017799,2]
[382534819,1756659050878,-480.0,0.00017799,2]
[382534821,1756659050887,-151.0,0.00017799,2]
[382534823,1756659050897,-480.0,0.00017799,2]
[382534825,1756659050907,-480.0,0.00017799,2]
[382534827,1756659050916,-480.0,0.00017799,2]
[382534829,1756659050926,-480.0,0.00017799,2]
[382534831,1756659050935,-480.0,0.00017799,2]
[382534833,1756659050945,-480.0,0.00017799,2]
[382534835,1756659050954,-151.0,0.00017799,2]
[382534837,1756659050965,-480.0,0.00017799,2]
[382534839,1756659050975,-480.0,0.00017799,2]
[382534841,1756659050984,-1415.49,0.00017799,2]
[382534843,1756659050994,-151.0,0.00017799,2]
[382534845,1756659051003,-151.0,0.00017799,2]
[382534847,1756659051013,-151.0,0.00017799,2]
[382534849,1756659051022,-151.0,0.00017799,2]
[382534851,1756659051033,-480.0,0.00017799,2]
[382534853,1756659051043,-480.0,0.00017799,2]
[382534855,1756659051053,-512.52,0.00017799,2]
[382534857,1756659051062,-480.0,0.00017799,2]
[382534859,1756659051072,-480.0,0.00017799,2]
[382534861,1756659051081,-151.0,0.00017799,2]
[382534863,1756659051090,-480.0,0.00017799,2]
[382534865,1756659051100,-480.0,0.00017799,2]
[382534867,1756659051109,-480.0,0.00017799,2]
[382534869,1756659051118,-480.0,0.00017799,2]
[382534871,1756659051127,-151.0,0.00017799,2]
[382534873,1756659051138,-686.57,0.00017799,2]
[382534875,1756659051147,-659.82,0.00017799,2]
[382534877,1756659051157,-151.0,0.00017799,2]
[382534879,1756659051166,-890.58,0.00017799,2]
[382534881,1756659051175,-663.59,0.00017799,2]
[382534883,1756659051185,-151.0,0.00017799,2]
[382534885,1756659051194,-151.0,0.00017799,2]
[382534887,1756659051203,-585.21,0.00017799,2]
[382534889,1756659051213,-212.903848,0.00017799,2]
[382534891,1756659051222,-480.0,0.00017799,2]
[382534893,1756659051231,-1419.66,0.00017799,2]
[382534896,1756659051243,-480.0,0.00017799,2]
[382534897,1756659051254,-480.0,0.00017799,2]
[382534899,1756659051263,-480.0,0.00017799,2]
[382534901,1756659051274,-594.61,0.00017799,2]
[382534903,1756659051283,-1015.26,0.00017799,2]
[382534905,1756659051292,-480.0,0.00017799,2]
[382534907,1756659051302,-480.0,0.00017799,2]
[382534909,1756659051311,-1319.99,0.00017799,2]
[382534911,1756659051320,-495.26,0.00017799,2]
[382534913,1756659051329,-480.0,0.00017799,2]
[382534915,1756659051339,-480.0,0.00017799,2]
[382534917,1756659051348,-480.0,0.00017799,2]
[382534919,1756659051358,-480.0,0.00017799,2]
[382534921,1756659051368,-1124.57,0.00017799,2]
[382534923,1756659051377,-1318.53,0.00017799,2]
[382534925,1756659051387,-480.0,0.00017799,2]
[382534927,1756659051397,-1080.55,0.00017799,2]
[382534929,1756659051406,-644.79,0.00017799,2]
[382534931,1756659051415,-480.0,0.00017799,2]
[382534933,1756659051425,-480.0,0.00017799,2]
[382534935,1756659051436,-1134.89,0.00017799,2]
[382534937,1756659051446,-480.0,0.00017799,2]
[382534939,1756659051455,-384.98239641,0.00017799,2]
[382534941,1756659051464,-480.0,0.00017799,2]
[382534943,1756659051474,-480.0,0.00017799,2]
[382534945,1756659051483,-480.0,0.00017799,2]
[382534947,1756659051492,-480.0,0.00017799,2]
[382534949,1756659051501,-480.0,0.00017799,2]
[382534951,1756659051510,-480.0,0.00017799,2]
[382534953,1756659051520,-1271.12,0.00017799,2]
[382534955,1756659051529,-837.88,0.00017799,2]
[382534957,1756659051539,-480.0,0.00017799,2]
[382534959,1756659051548,-480.0,0.00017799,2]
[382534961,1756659051558,-1105.46,0.00017799,2]
[382534963,1756659051568,-963.33,0.00017799,2]
[382534965,1756659051577,-485.83450265,0.00017799,2]
[382534967,1756659051586,-613.27,0.00017799,2]
[382534969,1756659051595,-752.24,0.00017799,2]
[382534971,1756659051606,-480.0,0.00017799,2]
[382534973,1756659051615,-480.0,0.00017799,2]
[382534975,1756659051624,-1399.16,0.00017799,2]
[382534977,1756659051634,-480.0,0.00017799,2]
[382534979,1756659051644,-480.0,0.00017799,2]
[382534981,1756659051653,-480.0,0.00017799,2]
[382534983,1756659051663,-480.0,0.00017799,2]
[382534985,1756659051672,-480.0,0.00017799,2]
[382534987,1756659051683,-480.0,0.00017799,2]
[382534989,1756659051692,-839.11,0.00017799,2]
[382534991,1756659051701,-648.71,0.00017799,2]
[382534993,1756659051710,-487.07,0.00017799,2]
[382534995,1756659051721,-663.73,0.00017799,2]
[382534997,1756659051731,-1115.72,0.00017799,2]
[382534999,1756659051740,-480.0,0.00017799,2]
[382535001,1756659051750,-779.22,0.00017799,2]
[382535003,1756659051759,-1375.71,0.00017799,2]
[382535005,1756659051769,-480.0,0.00017799,2]
[382535007,1756659051779,-987.25,0.00017799,2]
[382535009,1756659051789,-480.0,0.00017799,2]
[382535011,1756659051798,-480.0,0.00017799,2]
[382535013,1756659051807,-480.0,0.00017799,2]
[382535015,1756659051817,-480.0,0.00017799,2]
[382535017,1756659051826,-696.7,0.00017799,2]
[382535019,1756659051836,-480.0,0.00017799,2]
[382535021,1756659051847,-653.96,0.00017799,2]
[382535023,1756659051857,-480.0,0.00017799,2]
[382535025,1756659051868,-480.0,0.00017799,2]
[382535027,1756659051878,-887.24,0.00017799,2]
[382535029,1756659051887,-1000.0,0.00017799,2]
[382535031,1756659051896,-480.0,0.00017799,2]
[382535033,1756659051906,-553.78,0.00017799,2]
[382535035,1756659051916,-480.0,0.00017799,2]
[382535037,1756659051928,-480.0,0.00017799,2]
[382535039,1756659051938,-480.0,0.00017799,2]
[382535041,1756659051947,-480.0,0.00017799,2]
[382535043,1756659051957,-807.57,0.00017799,2]
[382535045,1756659051967,-1988.84,0.00017799,2]
[382535047,1756659051977,-963.8,0.00017799,2]
[382535049,1756659051987,-480.96,0.00017799,2]
[382535051,1756659051997,-480.0,0.00017799,2]
[382535053,1756659052007,-1698.69,0.00017799,2]
[382535055,1756659052016,-480.0,0.00017799,2]
[382535057,1756659052027,-480.0,0.00017799,2]
[382535059,1756659052037,-1182.42,0.00017799,2]
[382535061,1756659052047,-480.0,0.00017799,2]
[382535063,1756659052056,-480.0,0.00017799,2]
[382535065,1756659052067,-480.0,0.00017799,2]
[382535067,1756659052077,-356.36837268,0.00017799,2]
[382535069,1756659052087,-480.0,0.00017799,2]
[382535071,1756659052097,-480.0,0.00017799,2]
[382535073,1756659052107,-480.0,0.00017799,2]
[382535075,1756659052116,-524.45,0.00017799,2]
[382535077,1756659052125,-522.28,0.00017799,2]
[382535079,1756659052135,-480.0,0.00017799,2]
[382535081,1756659052144,-480.0,0.00017799,2]
[382535083,1756659052154,-549.9,0.00017799,2]
[382535085,1756659052163,-480.0,0.00017799,2]
[382535087,1756659052174,-618.67,0.00017799,2]
[382535089,1756659052183,-510.09,0.00017799,2]
[382535091,1756659052193,-682.3,0.00017799,2]
[382535093,1756659052202,-593.76,0.00017799,2]
[382535095,1756659052212,-480.0,0.00017799,2]
[382535097,1756659052222,-480.0,0.00017799,2]
[382535099,1756659052231,-480.0,0.00017799,2]
[382535102,1756659052242,-480.0,0.00017799,2]
[382535104,1756659052252,-755.44,0.00017799,2]
[382535106,1756659052261,-1379.26,0.00017799,2]
[382535108,1756659052271,-550.04,0.00017799,2]
[382535110,1756659052280,-480.0,0.00017799,2]
[382535111,1756659052290,-1295.54,0.00017799,2]
[382535113,1756659052299,-779.48,0.00017799,2]
[382535115,1756659052309,-480.0,0.00017799,2]
[382535118,1756659052319,-480.0,0.00017799,2]
[382535119,1756659052329,-480.0,0.00017799,2]
[382535122,1756659052339,-480.0,0.00017799,2]
[382535124,1756659052348,-480.0,0.00017799,2]
[382535125,1756659052357,-480.0,0.00017799,2]
[382535126,1756659052367,-480.0,0.00017799,2]
[382535127,1756659052376,-913.44,0.00017799,2]
[382535128,1756659052386,-480.0,0.00017799,2]
[382535129,1756659052395,-557.47,0.00017799,2]
[382535130,1756659052404,-1062.58,0.00017799,2]
[382535131,1756659052415,-480.0,0.00017799,2]
[382535132,1756659052424,-664.7,0.00017799,2]
[382535133,1756659052434,-480.0,0.00017799,2]
[382535134,1756659052443,-480.0,0.00017799,2]
[382535136,1756659052452,-480.0,0.00017799,2]
[382535138,1756659052461,-151.0,0.000178,2]
[382535139,1756659052471,-151.0,0.000178,2]
[382535141,1756659052480,-480.0,0.00017802,2]
[382535143,1756659052490,-1208.02,0.00017802,2]
[382535145,1756659052499,-480.0,0.00017802,2]
[382535148,1756659052509,-480.0,0.00017802,2]
[382535164,1756659052652,-480.0,0.00017802,2]
[382535166,1756659052662,-480.0,0.00017802,2]
[382535168,1756659052672,-653.05,0.00017802,2]
[382535170,1756659052682,-480.0,0.00017802,2]
[382535172,1756659052691,-480.0,0.00017802,2]
[382535174,1756659052701,-480.0,0.00017802,2]
[382535176,1756659052711,-480.0,0.00017802,2]
[382535178,1756659052721,-480.0,0.00017802,2]
[382535180,1756659052730,-548.86,0.00017802,2]
[382535182,1756659052739,-480.0,0.00017802,2]
[382535184,1756659052748,-480.0,0.00017802,2]
[382535186,1756659052757,-480.0,0.00017802,2]
[382535188,1756659052767,-480.0,0.00017802,2]
[382535190,1756659052777,-704.93,0.00017802,2]
[382535192,1756659052787,-480.0,0.00017802,2]
[382535194,1756659052796,-554.81,0.00017802,2]
[382535196,1756659052806,-480.0,0.00017802,2]
[382535198,1756659052815,-480.0,0.00017802,2]
[382535200,1756659052824,-480.0,0.00017802,2]
[382535202,1756659052833,-913.52,0.00017802,2]
[382535204,1756659052843,-480.0,0.00017802,2]
[382535206,1756659052852,-489.19,0.00017802,2]
[382535208,1756659052861,-480.0,0.00017802,2]
[382535210,1756659052870,-610.9,0.00017802,2]
[382535212,1756659052879,-598.24666933,0.00017802,2]
[382535214,1756659052888,-480.0,0.00017802,2]
[382535216,1756659052898,-762.93,0.00017802,2]
[382535218,1756659052907,-530.97,0.00017802,2]
[382535220,1756659052916,-480.0,0.00017802,2]
[382535222,1756659052926,-151.0,0.00017806,2]
[382535224,1756659052935,-270.445229,0.00017806,2]
[382535226,1756659052945,-151.0,0.00017806,2]
[382535228,1756659052954,-151.0,0.00017806,2]
[382535230,1756659052963,-585.91,0.00017806,2]
[382535232,1756659052974,-4038.37,0.00017806,2]
[382535234,1756659052983,-2456.42,0.00017806,2]
[382535236,1756659052993,-509.24,0.00017806,2]
[382535238,1756659053003,-1226.54,0.00017806,2]
[382535240,1756659053013,-793.22,0.00017806,2]
[382535242,1756659053022,-1549.82,0.00017806,2]
[382535244,1756659053033,-719.76,0.00017806,2]
[382535246,1756659053042,-168.0,0.00017891,2]
[382535248,1756659053052,-151.0,0.000179,2]
[382535250,1756659053062,-151.0,0.000179,2]
[382535253,1756659053072,-1000.0,0.00018,18]
[382535255,1756659053083,-2988.10233505,0.00018,2]
[382535257,1756659053093,-151.0,0.00018,2]
[382535259,1756659053102,-168.0,0.00018004,2]
[382535261,1756659053112,-659.37103648,0.00018036,2]
[382535263,1756659053121,-168.0,0.00018039,2]
[382535265,1756659053131,-237.97448749,0.00018072,2]
[382535267,1756659053140,-480.0,0.00018072,2]
[382535269,1756659053150,-658.16,0.00018072,2]
[382535271,1756659053160,-578.71,0.00018072,2]
[382535273,1756659053169,-1772.12,0.00018072,2]
[382535275,1756659053178,-991.87,0.00018072,2]
[382535277,1756659053188,-1223.35,0.00018072,2]
[382535279,1756659053197,-151.0,0.00018072,2]
[382535281,1756659053207,-151.0,0.00018072,2]
[382535282,1756659053217,-1263.34,0.00018072,2]
[382535284,1756659053226,-999.32,0.00018072,2]
[382535286,1756659053235,-151.0,0.00018072,2]
[382535288,1756659053244,-151.0,0.00018072,2]
[382535290,1756659053253,-151.0,0.00018072,2]
[382535292,1756659053263,-596.34,0.00018072,2]
[382535294,1756659053273,-151.55384,0.00018072,2]
[382535297,1756659053283,-570.43,0.00018072,2]
[382535298,1756659053292,-151.0,0.00018072,2]
[382535300,1756659053302,-1219.86,0.00018072,2]
[382535302,1756659053311,-480.0,0.00018072,2]
[382535304,1756659053321,-151.0,0.00018072,2]
[382535306,1756659053330,-151.0,0.00018072,2]
[382535308,1756659053339,-493.03,0.00018072,2]
[382535310,1756659053348,-480.0,0.00018072,2]
[382535312,1756659053358,-726.34,0.00018072,2]
[382535314,1756659053367,-656.23,0.00018072,2]
[382535317,1756659053377,-480.0,0.00018072,2]
[382535318,1756659053386,-902.06,0.00018072,2]
[382535321,1756659053396,-167.076088,0.00018072,2]
[382535323,1756659053406,-488.15,0.00018072,2]
[382535325,1756659053415,-480.0,0.00018072,2]
[382535327,1756659053425,-480.0,0.00018072,2]
[382535329,1756659053434,-480.0,0.00018072,2]
[382535331,1756659053443,-1094.1,0.00018072,2]
[382535333,1756659053453,-151.0,0.00018072,2]
[382535335,1756659053462,-724.91,0.00018072,2]
[382535337,1756659053471,-151.0,0.00018072,2]
[382535339,1756659053481,-151.0,0.00018072,2]
[382535341,1756659053491,-734.1,0.00018072,2]
[382535343,1756659053499,-286.199904,0.00018072,2]
[382535345,1756659053510,-480.0,0.00018072,2]
[382535347,1756659053520,-151.0,0.00018072,2]
[382535349,1756659053530,-151.0,0.00018072,2]
[382535351,1756659053539,-480.0,0.00018072,2]
[382535353,1756659053549,-480.0,0.00018072,2]
[382535355,1756659053558,-480.0,0.00018072,2]
[382535357,1756659053567,-592.03,0.00018072,2]
[382535359,1756659053577,-151.0,0.00018072,2]
[382535361,1756659053586,-226.906472,0.00018072,2]
[382535363,1756659053595,-151.0,0.00018072,2]
[382535365,1756659053604,-1526.65,0.00018072,2]
[382535367,1756659053614,-635.15,0.00018072,2]
[382535369,1756659053623,-480.0,0.00018072,2]
[382535371,1756659053632,-1595.39,0.00018072,2]
[382535373,1756659053641,-151.0,0.00018072,2]
[382535375,1756659053650,-785.27,0.00018072,2]
[382535377,1756659053660,-151.0,0.00018072,2]
[382535379,1756659053669,-480.0,0.00018072,2]
[382535381,1756659053680,-746.61,0.00018072,2]
[382535383,1756659053689,-480.0,0.00018072,2]
[382535385,1756659053698,-1249.36,0.00018072,2]
[382535386,1756659053708,-808.76,0.00018072,2]
[382535388,1756659053717,-1205.0,0.00018072,2]
[382535390,1756659053726,-480.0,0.00018072,2]
[382535392,1756659053735,-480.0,0.00018072,2]
[382535394,1756659053744,-487.67,0.00018072,2]
[382535396,1756659053753,-190.444749,0.00018072,2]
[382535398,1756659053763,-190.444749,0.00018072,2]
[382535400,1756659053772,-190.444749,0.00018072,2]
[382535402,1756659053782,-190.444749,0.00018072,2]
[382535404,1756659053791,-480.0,0.00018072,2]
[382535406,1756659053801,-799.97,0.00018072,2]
[382535408,1756659053810,-480.0,0.00018072,2]
[382535410,1756659053820,-480.0,0.00018072,2]
[382535414,1756659053839,-151.0,0.00018072,2]
[382535417,1756659053859,-1064.12,0.00018072,2]
[382535419,1756659053871,-594.27,0.00018072,2]
[382535422,1756659053886,-1311.31,0.00018072,2]
[382535424,1756659053903,-480.0,0.00018072,2]
[382535427,1756659053919,-151.0,0.00018072,2]
[382535430,1756659053939,-480.0,0.00018072,2]
[382535432,1756659053954,-974.03,0.00018072,2]
[382535435,1756659053969,-480.0,0.00018072,2]
[382535437,1756659053983,-151.0,0.00018072,2]
[382535440,1756659054000,-563.46,0.00018072,2]
[382535443,1756659054014,-1291.38,0.00018072,2]
[382535445,1756659054026,-972.17,0.00018072,2]
[382535447,1756659054040,-1286.62,0.00018072,2]
[382535450,1756659054055,-480.0,0.00018072,2]
[382535453,1756659054071,-480.0,0.00018072,2]
[382535456,1756659054087,-480.0,0.00018072,2]
[382535458,1756659054105,-491.87,0.00018072,2]
[382535461,1756659054116,-480.0,0.00018072,2]
[382535463,1756659054128,-646.93,0.00018072,2]
[382535466,1756659054144,-534.7,0.00018072,2]
[382535469,1756659054158,-674.34,0.00018072,2]
[382535471,1756659054170,-480.0,0.00018072,2]
[382535473,1756659054183,-609.02,0.00018072,2]
[382535476,1756659054198,-7296.12,0.00018072,2]
[382535478,1756659054210,-487.08,0.00018072,2]
[382535481,1756659054224,-606.71,0.00018072,2]
[382535483,1756659054237,-892.26,0.00018072,2]
[382535485,1756659054249,-539.51,0.00018072,2]
[382535488,1756659054262,-480.0,0.00018072,2]
[382535490,1756659054275,-480.0,0.00018072,2]
[382535492,1756659054287,-480.0,0.00018072,2]
[382535494,1756659054301,-697.89,0.00018072,2]
[382535497,1756659054313,-480.0,0.00018072,2]
[382535499,1756659054326,-4403.45,0.00018072,2]
[382535501,1756659054338,-1502.2,0.00018072,2]
[382535504,1756659054351,-1129.95,0.00018072,2]
[382535506,1756659054364,-480.0,0.00018072,2]
[382535508,1756659054376,-480.0,0.00018072,2]
[382535511,1756659054389,-480.0,0.00018072,2]
[382535513,1756659054401,-480.0,0.00018072,2]
[382535515,1756659054414,-641.62,0.00018072,2]
[382535516,1756659054426,-699.68,0.00018072,2]
[382535517,1756659054438,-894.98,0.00018072,2]
[382535518,1756659054451,-1490.82,0.00018072,2]
[382535519,1756659054463,-480.0,0.00018072,2]
[382535520,1756659054475,-1427.93,0.00018072,2]
[382535521,1756659054487,-553.1,0.00018072,2]
[382535522,1756659054499,-480.0,0.00018072,2]
[382535523,1756659054511,-808.96,0.00018072,2]
[382535524,1756659054524,-2669.24,0.00018072,2]
[382535525,1756659054536,-1075.84,0.00018072,2]
[382535526,1756659054548,-480.0,0.00018072,2]
[382535527,1756659054560,-480.0,0.00018072,2]
[382535528,1756659054572,-480.0,0.00018072,2]
[382535529,1756659054584,-872.18,0.00018072,2]
[382535530,1756659054598,-480.0,0.00018072,2]
[382535531,1756659054610,-480.0,0.00018072,2]
[382535532,1756659054623,-1035.54,0.00018072,2]
[382535533,1756659054636,-151.0,0.00018072,2]
[382535534,1756659054648,-480.0,0.00018072,2]
[382535535,1756659054660,-684.5,0.00018072,2]
[382535536,1756659054672,-649.67,0.00018072,2]
[382535537,1756659054684,-480.0,0.00018072,2]
[382535538,1756659054697,-510.6,0.00018072,2]
[382535539,1756659054709,-1160.87,0.00018072,2]
[382535540,1756659054722,-728.63,0.00018072,2]
[382535541,1756659054734,-480.0,0.00018072,2]
[382535542,1756659054747,-151.0,0.00018072,2]
[382535543,1756659054759,-703.71,0.00018072,2]
[382535544,1756659054771,-151.0,0.00018072,2]
[382535545,1756659054783,-1192.27,0.00018072,2]
[382535546,1756659054795,-2321.06,0.00018072,2]
[382535547,1756659054807,-151.0,0.00018072,2]
[382535548,1756659054819,-151.0,0.00018072,2]
[382535549,1756659054832,-151.343345,0.00018072,2]
[382535550,1756659054844,-151.0,0.00018072,2]
[382535551,1756659054856,-601.2,0.00018072,2]
[382535552,1756659054867,-1549.31,0.00018072,2]
[382535553,1756659054879,-151.0,0.00018072,2]
[382535554,1756659054892,-480.0,0.00018072,2]
[382535555,1756659054904,-1422.9,0.00018072,2]
[382535556,1756659054916,-656.06,0.00018072,2]
[382535557,1756659054928,-480.0,0.00018072,2]
[382535558,1756659054940,-525.66,0.00018072,2]
[382535559,1756659054952,-151.0,0.00018072,2]
[382535560,1756659054965,-480.0,0.00018072,2]
[382535561,1756659054977,-751.19,0.00018072,2]
[382535562,1756659054989,-166.626471,0.00018072,2]
[382535563,1756659055005,-480.0,0.00018072,2]
[382535564,1756659055017,-6095.61,0.00018072,2]
[382535565,1756659055030,-1172.56,0.00018072,2]
[382535566,1756659055043,-484.23,0.00018072,2]
[382535567,1756659055055,-480.0,0.00018072,2]
[382535568,1756659055067,-151.0,0.00018072,2]
[382535569,1756659055080,-151.0,0.00018072,2]
[382535570,1756659055092,-908.82,0.00018072,2]
[382535571,1756659055104,-1298.95,0.00018072,2]
[382535572,1756659055117,-532.97,0.00018072,2]
[382535573,1756659055129,-647.55,0.00018072,2]